fUSD/lending_fUSD_20250305
["ID","MTS","AMOUNT","RATE_DAILY","PERIOD"]
[355486548,1741200639715,-1328.4,0.0001099,2]
[355486550,1741200639726,-797.69,0.0001099,2]
[355486552,1741200639737,-1885.22,0.0001099,2]
[355486554,1741200639748,-626.99,0.0001099,2]
[355486557,1741200639759,-1372.54,0.0001099,2]
[355486559,1741200639770,-500.0,0.0001099,2]
[355486561,1741200639781,-1538.74,0.0001099,2]
[355486563,1741200639791,-1012.99,0.0001099,2]
[355486565,1741200639802,-1476.71,0.0001099,2]
[355486567,1741200639814,-3511.52,0.0001099,2]
[355486569,1741200639824,-500.0,0.0001099,2]
[355486571,1741200639834,-3690.92,0.0001099,2]
[355486620,1741200640279,-608.65,0.0001099,2]
[355486623,1741200640298,-566.55,0.0001099,2]
[355486626,1741200640317,-1107.53,0.0001099,2]
[355486628,1741200640328,-2876.69,0.0001099,2]
[355486630,1741200640337,-500.0,0.0001099,2]
[355486632,1741200640346,-500.0,0.0001099,2]
[355486634,1741200640355,-500.0,0.0001099,2]
[355486636,1741200640365,-500.0,0.0001099,2]
[355486638,1741200640374,-500.0,0.0001099,2]
[355486640,1741200640388,-500.0,0.0001099,2]
[355486642,1741200640397,-837.78,0.0001099,2]
[355486644,1741200640406,-717.53,0.0001099,2]
[355486646,1741200640416,-544.14,0.0001099,2]
[355486648,1741200640428,-16535.09,0.0001099,2]
[355486650,1741200640438,-887.39,0.0001099,2]
[355486652,1741200640447,-298.80039403,0.0001099,2]
[355486654,1741200640456,-1611.6,0.0001099,2]
[355486656,1741200640467,-500.0,0.0001099,2]
[355486658,1741200640477,-2149.12,0.0001099,2]
[355486660,1741200640486,-61.2780093,0.0001099,2]
[355486663,1741200640503,-721.36684764,0.0001099,2]
[355486666,1741200640518,-274.87514306,0.0001099,2]
[355486668,1741200640527,-756.56548887,0.0001099,2]
[355486670,1741200640539,-111.87451113,0.0001099,2]
[355486672,1741200640548,-394.38548887,0.0001099,2]
[355486674,1741200640560,-105.61451113,0.0001099,2]
[355486676,1741200640569,-500.0,0.0001099,2]
[355486678,1741200640579,-500.0,0.0001099,2]
[355486680,1741200640588,-6691.21,0.0001099,2]
[355486682,1741200640598,-854.66,0.0001099,2]
[355486684,1741200640607,-614.64,0.0001099,2]
[355486686,1741200640617,-1476.72,0.0001099,2]
[355486688,1741200640626,-500.0,0.0001099,2]
[355486690,1741200640635,-500.0,0.0001099,2]
[355486692,1741200640645,-501.3,0.0001099,2]
[355486694,1741200640654,-179.29667104,0.0001099,2]
[355486696,1741200640663,-380.5327962,0.0001099,2]
[355486698,1741200640672,-500.0,0.0001099,2]
[355486700,1741200640683,-500.0,0.0001099,2]
[355486702,1741200640693,-422.08045158,0.0001099,2]
[355486704,1741200640702,-500.0,0.0001099,2]
[355486706,1741200640711,-500.0,0.0001099,2]
[355486708,1741200640720,-1537.79,0.0001099,2]
[355486709,1741200640730,-500.0,0.0001099,2]
[355486712,1741200640740,-500.0,0.0001099,2]
[355486713,1741200640749,-2252.76,0.0001099,2]
[355486715,1741200640759,-586.87,0.0001099,2]
[355486718,1741200640769,-770.08,0.0001099,2]
[355486720,1741200640778,-524.15,0.0001099,2]
[355486722,1741200640788,-942.5,0.0001099,2]
[355486723,1741200640798,-500.0,0.0001099,2]
[355486725,1741200640807,-17534.61,0.0001099,2]
[355486727,1741200640817,-1233.92,0.0001099,2]
[355486729,1741200640826,-500.0,0.0001099,2]
[355486731,1741200640836,-500.0,0.0001099,2]
[355486733,1741200640845,-1164.87,0.0001099,2]
[355486735,1741200640855,-601.21,0.0001099,2]
[355486737,1741200640864,-982.18,0.0001099,2]
[355486739,1741200640873,-500.0,0.0001099,2]
[355486741,1741200640883,-918.23,0.0001099,2]
[355486743,1741200640892,-2054.2,0.0001099,2]
[355486745,1741200640901,-771.32,0.0001099,2]
[355486747,1741200640912,-637.95,0.0001099,2]
[355486749,1741200640923,-809.88,0.0001099,2]
[355486751,1741200640935,-500.0,0.0001099,2]
[355486753,1741200640945,-704.79,0.0001099,2]
[355486755,1741200640954,-1181.99,0.0001099,2]
[355486757,1741200640964,-500.0,0.0001099,2]
[355486759,1741200640973,-500.0,0.0001099,2]
[355486762,1741200640983,-1553.34,0.0001099,2]
[355486763,1741200640993,-962.34,0.0001099,2]
[355486765,1741200641002,-500.0,0.0001099,2]
[355486767,1741200641012,-3392.68,0.0001099,2]
[355486770,1741200641023,-371.83360275,0.0001099,2]
[355486772,1741200641032,-1071.38,0.0001099,2]
[355486774,1741200641042,-955.76,0.0001099,2]
[355486776,1741200641052,-500.0,0.0001099,2]
[355486778,1741200641061,-1159.08,0.0001099,2]
[355486780,1741200641071,-1241.61,0.00010991,2]
[355486782,1741200641080,-500.0,0.00010991,2]
[355486783,1741200641090,-705.58,0.00010991,2]
[355486785,1741200641099,-1033.73,0.00010991,2]
[355486787,1741200641108,-500.0,0.00010991,2]
[355486790,1741200641119,-1555.68,0.00010991,2]
[355486791,1741200641128,-1075.41,0.00010991,2]
[355486793,1741200641137,-626.91,0.00010991,2]
[355486796,1741200641147,-910.08,0.00010991,2]
[355486798,1741200641156,-1126.86,0.00010991,2]
[355486800,1741200641165,-826.2,0.00010991,2]
[355486802,1741200641177,-547.73,0.00010991,2]
[355486804,1741200641187,-1231.88,0.00010991,2]
[355486806,1741200641197,-943.35,0.00010991,2]
[355486808,1741200641207,-1705.77,0.00010991,2]
[355486810,1741200641216,-666.62,0.00010991,2]
[355486812,1741200641227,-1783.54,0.00010991,2]
[355486814,1741200641236,-839.04,0.00010991,2]
[355486816,1741200641245,-1120.56,0.00010991,2]
[355486818,1741200641255,-532.33,0.00010991,2]
[355486820,1741200641264,-500.0,0.00010991,2]
[355486821,1741200641273,-1599.56,0.00010991,2]
[355486822,1741200641282,-500.0,0.00010991,2]
[355486823,1741200641291,-500.0,0.00010991,2]
[355486824,1741200641300,-525.02113982,0.00010991,2]
[355486825,1741200641309,-500.0,0.00010991,2]
[355486826,1741200641318,-500.0,0.00010991,2]
[355486827,1741200641327,-500.0,0.00010991,2]
[355486828,1741200641336,-1367.31,0.00010991,2]
[355486829,1741200641345,-500.0,0.00010991,2]
[355486830,1741200641354,-500.0,0.00010991,2]
[355486831,1741200641363,-500.0,0.00010991,2]
[355486832,1741200641371,-500.0,0.00010991,2]
[355486833,1741200641381,-500.0,0.00010991,2]
[355486834,1741200641392,-500.0,0.00010991,2]
[355486835,1741200641401,-500.0,0.00010991,2]
[355486836,1741200641410,-598.67,0.00010991,2]
[355486837,1741200641419,-500.0,0.00010991,2]
[355486839,1741200641431,-500.0,0.00010991,2]
[355486841,1741200641441,-500.0,0.00010991,2]
[355486843,1741200641450,-500.0,0.00010991,2]
[355486845,1741200641460,-500.0,0.00010991,2]
[355486847,1741200641470,-500.0,0.00010991,2]
[355486849,1741200641480,-500.0,0.00010991,2]
[355486851,1741200641490,-946.34,0.00010991,2]
[355486853,1741200641499,-500.0,0.00010991,2]
[355486855,1741200641516,-1884.06,0.00010991,2]
[355486857,1741200641527,-500.0,0.00010991,2]
[355486859,1741200641536,-500.0,0.00010991,2]
[355486861,1741200641546,-500.0,0.00010991,2]
[355486863,1741200641555,-500.0,0.00010991,2]
[355486865,1741200641565,-523.19,0.00010991,2]
[355486867,1741200641575,-567.05,0.00010991,2]
[355486869,1741200641584,-500.0,0.00010991,2]
[355486871,1741200641594,-500.0,0.00010991,2]
[355486873,1741200641603,-515.41,0.00010991,2]
[355486875,1741200641612,-500.0,0.00010991,2]
[355486877,1741200641621,-500.0,0.00010991,2]
[355486879,1741200641631,-500.0,0.00010991,2]
[355486881,1741200641640,-500.0,0.00010991,2]
[355486883,1741200641649,-500.0,0.00010991,2]
[355486885,1741200641659,-500.0,0.00010991,2]
[355486887,1741200641668,-6120.41,0.00010991,2]
[355486889,1741200641678,-500.0,0.00010991,2]
[355486891,1741200641688,-500.0,0.00010991,2]
[355486893,1741200641697,-500.0,0.00010991,2]
[355486895,1741200641706,-500.0,0.00010991,2]
[355486897,1741200641716,-500.0,0.00010991,2]
[355486899,1741200641725,-670.944416,0.00010991,2]
[355486901,1741200641735,-766.9,0.00010991,2]
[355486903,1741200641744,-500.0,0.00010991,2]
[355486905,1741200641753,-500.0,0.00010991,2]
[355486907,1741200641763,-500.0,0.00010991,2]
[355486910,1741200641773,-500.0,0.00010991,2]
[355486912,1741200641783,-500.0,0.00010991,2]
[355486914,1741200641792,-1130.09,0.00010991,2]
[355486916,1741200641802,-917.64,0.00010991,2]
[355486918,1741200641811,-500.0,0.00010991,2]
[355486920,1741200641820,-500.0,0.00010991,2]
[355486921,1741200641829,-500.0,0.00010991,2]
[355486924,1741200641840,-904.041325,0.00010991,2]
[355486926,1741200641850,-500.0,0.00010991,2]
[355486928,1741200641860,-500.0,0.00010991,2]
[355486930,1741200641869,-500.0,0.00010991,2]
[355486932,1741200641879,-500.0,0.00010991,2]
[355486934,1741200641889,-500.0,0.00010991,2]
[355486936,1741200641898,-500.0,0.00010991,2]
[355486938,1741200641908,-1305.07,0.00010991,2]
[355486940,1741200641918,-500.0,0.00010991,2]
[355486942,1741200641929,-500.0,0.00010991,2]
[355486944,1741200641939,-500.0,0.00010991,2]
[355486946,1741200641948,-1682.89,0.00010991,2]
[355486948,1741200641957,-500.0,0.00010991,2]
[355486950,1741200641967,-500.0,0.00010991,2]
[355486952,1741200641976,-500.0,0.00010991,2]
[355486954,1741200641986,-500.0,0.00010991,2]
[355486956,1741200641995,-500.0,0.00010991,2]
[355486958,1741200642005,-500.0,0.00010991,2]
[355486960,1741200642015,-500.0,0.00010991,2]
[355486962,1741200642024,-500.0,0.00010991,2]
[355486964,1741200642035,-500.0,0.00010991,2]
[355486966,1741200642044,-500.0,0.00010991,2]
[355486968,1741200642054,-1772.49,0.00010991,2]
[355486970,1741200642063,-500.0,0.00010991,2]
[355486972,1741200642073,-500.0,0.00010991,2]
[355486974,1741200642085,-1003.0,0.00010991,2]
[355486976,1741200642094,-500.0,0.00010991,2]
[355486978,1741200642105,-500.0,0.00010991,2]
[355486980,1741200642114,-500.0,0.00010991,2]
[355486982,1741200642124,-500.0,0.00010991,2]
[355486984,1741200642134,-500.0,0.00010991,2]
[355486986,1741200642144,-500.0,0.00010991,2]
[355486988,1741200642153,-500.0,0.00010991,2]
[355486990,1741200642162,-502.62148669,0.00010991,2]
[355486992,1741200642172,-3790.9,0.00010991,2]
[355486994,1741200642183,-500.0,0.00010991,2]
[355486996,1741200642193,-500.0,0.00010991,2]
[355486998,1741200642202,-500.0,0.00010991,2]
[355487000,1741200642212,-500.0,0.00010991,2]
[355487002,1741200642222,-500.0,0.00010991,2]
[355487004,1741200642232,-500.0,0.00010991,2]
[355487006,1741200642242,-3404.1,0.00010991,2]
[355487008,1741200642252,-1028.49,0.00010991,2]
[355487010,1741200642261,-500.0,0.00010991,2]
[355487012,1741200642271,-500.0,0.00010991,2]
[355487015,1741200642280,-500.0,0.00010991,2]
[355487017,1741200642289,-500.0,0.00010991,2]
[355487019,1741200642299,-1045.75,0.00010991,2]
[355487021,1741200642309,-535.97755924,0.00010991,2]
[355487023,1741200642318,-500.0,0.00010991,2]
[355487025,1741200642328,-550.2988659,0.00010991,2]
[355487027,1741200642337,-500.0,0.00010991,2]
[355487029,1741200642346,-500.0,0.00010991,2]
[355487031,1741200642355,-998.92,0.00010991,2]
[355487033,1741200642365,-500.0,0.00010991,2]
[355487035,1741200642375,-500.0,0.00010991,2]
[355487038,1741200642388,-577.21312608,0.00010991,2]
[355487041,1741200642398,-1295.34,0.00010991,2]
[355487043,1741200642407,-500.0,0.00010991,2]
[355487045,1741200642416,-935.78,0.00010991,2]
[355487047,1741200642427,-500.0,0.00010991,2]
[355487049,1741200642436,-500.0,0.00010991,2]
[355487051,1741200642445,-294.28403154,0.00010991,2]
[355487053,1741200642455,-500.0,0.00010991,2]
[355487055,1741200642465,-500.0,0.00010991,2]
[355487057,1741200642475,-1547.58,0.00010991,2]
[355487059,1741200642484,-500.0,0.00010991,2]
[355487061,1741200642494,-500.0,0.00010991,2]
[355487063,1741200642504,-500.0,0.00010991,2]
[355487065,1741200642513,-1015.67,0.00010991,2]
[355487067,1741200642523,-500.0,0.00010991,2]
[355487069,1741200642533,-500.0,0.00010991,2]
[355487071,1741200642542,-500.0,0.00010991,2]
[355487074,1741200642552,-1175.76,0.00010991,2]
[355487076,1741200642561,-2025.63,0.00010991,2]
[355487078,1741200642571,-500.0,0.00010991,2]
[355487080,1741200642580,-500.0,0.00010991,2]
[355487082,1741200642590,-3766.31,0.00010991,2]
[355487084,1741200642599,-549.93,0.00010991,2]
[355487086,1741200642608,-500.0,0.00010991,2]
[355487088,1741200642618,-500.0,0.00010991,2]
[355487090,1741200642628,-902.68,0.00010991,2]
[355487092,1741200642638,-508.2225882,0.00010991,2]
[355487094,1741200642648,-159.0,0.00010991,3]
[355487096,1741200642658,-500.0,0.00010991,2]
[355487099,1741200642668,-500.0,0.00010991,2]
[355487101,1741200642678,-500.0,0.00010991,2]
[355487103,1741200642687,-6581.15,0.00010991,2]
[355487105,1741200642697,-500.0,0.00010991,2]
[355487107,1741200642707,-500.0,0.00010991,2]
[355487109,1741200642717,-500.0,0.00010991,2]
[355487111,1741200642726,-500.0,0.00010991,2]
[355487113,1741200642735,-503.89182382,0.00010991,2]
[355487115,1741200642745,-330.63222485,0.00010991,2]
[355487117,1741200642755,-500.0,0.00010991,2]
[355487119,1741200642764,-228.57410495,0.00010992,2]
[355487121,1741200642774,-500.0,0.00010992,2]
[355487123,1741200642784,-609.31,0.00010992,2]
[355487125,1741200642794,-500.0,0.00010992,2]
[355487127,1741200642803,-926.14,0.00010992,2]
[355487129,1741200642813,-500.0,0.00010992,2]
[355487131,1741200642822,-150.0,0.00011,2]
[355487133,1741200642832,-777.52,0.00011,2]
[355487135,1741200642841,-256.87927508,0.00011005,2]
[355487137,1741200642852,-5090.9001918,0.00011016,2]
[355487139,1741200642861,-2228.84255807,0.00011018,2]
[355487141,1741200642871,-393.36652267,0.00011024,2]
[355487143,1741200642882,-742.51145033,0.00011042,2]
[355487146,1741200642898,-1486.33110774,0.00011042,2]
[355487148,1741200642907,-302.56889226,0.00011046,2]
[355487151,1741200642934,-1926.27366581,0.00011046,2]
[355487153,1741200642943,-5090.9001918,0.00011049,2]
[355487155,1741200642953,-393.36652267,0.0001105,2]
[355487157,1741200642962,-393.36652267,0.00011073,2]
[355487159,1741200642971,-1000.0,0.00011093,2]
[355487161,1741200642980,-5090.9001918,0.00011095,2]
[355487163,1741200642990,-1541.23452819,0.00011099,2]
[355487165,1741200642999,-1541.23452813,0.00011099,2]
[355487167,1741200643008,-2831.07858318,0.00011099,2]
[355487169,1741200643018,-2831.07858311,0.00011099,2]
[355487171,1741200643027,-625.59037234,0.000111,2]
[355487174,1741200643037,-625.59037225,0.000111,2]
[355487176,1741200643046,-625.59037225,0.000111,2]
[355487178,1741200643056,-150.0,0.00011105,2]
[355487180,1741200643065,-625.59037225,0.00011107,2]
[355487182,1741200643074,-1000.0,0.00011108,2]
[355487184,1741200643083,-717.14,0.00011134,2]
[355487185,1741200643093,-150.0,0.00011154,2]
[355487187,1741200643102,-26737.1328,0.00011166,2]
[355487190,1741200643112,-150.0,0.00011169,2]
[355487192,1741200643122,-150.0,0.00011175,2]
[355487193,1741200643131,-625.59037225,0.00011176,2]
[355487195,1741200643141,-8000.0,0.00011214,3]
[355487197,1741200643150,-150.0,0.00011217,2]
[355487200,1741200643160,-1000.0,0.00011224,2]
[355487201,1741200643169,-1000.0,0.00011226,2]
[355487203,1741200643180,-150.0,0.00011239,2]
[355487206,1741200643190,-625.59037225,0.00011245,2]
[355487208,1741200643199,-226.1336723,0.00011255,2]
[355487210,1741200643209,-2831.07858311,0.00011255,2]
[355487211,1741200643219,-1541.23452813,0.00011256,2]
[355487213,1741200643229,-150.0,0.00011263,2]
[355487216,1741200643238,-2091.47,0.00011263,2]
[355487218,1741200643248,-627.12,0.00011263,2]
[355487220,1741200643258,-747.95,0.00011263,2]
[355487222,1741200643267,-551.48,0.00011263,2]
[355487223,1741200643277,-1284.04,0.00011263,2]
[355487226,1741200643286,-298.25813519,0.00011263,2]
[355487228,1741200643299,-201.74186481,0.00011263,2]
[355487230,1741200643308,-588.04896159,0.00011263,2]
[355487232,1741200643321,-693.46103841,0.00011263,2]
[355487234,1741200643330,-306.53896159,0.00011263,2]
[355487236,1741200643341,-445.93,0.00011263,2]
[355487239,1741200643360,-744.48103841,0.00011263,2]
[355487241,1741200643369,-861.95,0.00011263,2]
[355487243,1741200643382,-500.0,0.00011263,2]
[355487245,1741200643392,-772.17,0.00011263,2]
[355487248,1741200643402,-500.0,0.00011263,2]
[355487250,1741200643412,-1495.53,0.00011263,2]
[355487252,1741200643423,-2228.8,0.00011263,2]
[355487254,1741200643434,-934.75,0.00011263,2]
[355487256,1741200643443,-738.45,0.00011263,2]
[355487258,1741200643452,-541.67486532,0.00011263,2]
[355487260,1741200643470,-357.75513468,0.00011263,2]
[355487262,1741200643479,-500.0,0.00011263,2]
[355487264,1741200643488,-25.82756532,0.00011263,2]
[355487267,1741200643501,-404.4468149,0.00011263,2]
[355487736,1741200648476,-1068.94,0.0001099,2]
[355487738,1741200648486,-26.4074786,0.00011263,2]
[355487740,1741200648497,-43.31814118,0.00011263,2]
[355487742,1741200648507,-500.0,0.00011263,2]
[355487744,1741200648516,-1332.73,0.00011263,2]
[355487746,1741200648525,-929.34,0.00011263,2]
[355487748,1741200648534,-815.2,0.00011263,2]
[355487750,1741200648543,-500.0,0.00011263,2]
[355487752,1741200648553,-2408.08572343,0.00011263,2]
[355487754,1741200648564,-250.30361115,0.00011263,2]
[355487757,1741200648579,-3470.53647137,0.00011263,2]
[355487759,1741200648590,-2650.58419405,0.00011263,2]
[355487761,1741200648599,-628.18077438,0.00011263,2]
[355487765,1741200648630,-472.99853262,0.00010989,2]
[355487768,1741200648642,-112.12146738,0.00010989,2]
[355487770,1741200648652,-171.76922562,0.00011263,2]
[355487771,1741200648661,-933.81,0.00011263,2]
[355487773,1741200648671,-53868.59000333,0.00011263,2]
[355487776,1741200648680,-500.0,0.00011264,2]
[355487777,1741200648690,-500.0,0.00011264,2]
[355487779,1741200648699,-500.0,0.00011264,2]
[355487781,1741200648708,-500.0,0.00011264,2]
[355487783,1741200648718,-500.0,0.00011264,2]
[355487785,1741200648727,-500.0,0.00011264,2]
[355487787,1741200648736,-500.0,0.00011264,2]
[355487789,1741200648746,-500.0,0.00011264,2]
[355487791,1741200648755,-500.0,0.00011264,2]
[355487793,1741200648765,-500.0,0.00011264,2]
[355487795,1741200648774,-500.0,0.00011264,2]
[355487797,1741200648784,-500.0,0.00011264,2]
[355487799,1741200648794,-500.0,0.00011264,2]
[355487801,1741200648803,-500.0,0.00011264,2]
[355487803,1741200648812,-545.38,0.00011264,2]
[355487805,1741200648822,-500.0,0.00011264,2]
[355487807,1741200648832,-672.64,0.00011264,2]
[355487809,1741200648842,-500.0,0.00011264,2]
[355487811,1741200648851,-501.06,0.00011264,2]
[355487813,1741200648862,-500.0,0.00011264,2]
[355487815,1741200648872,-500.0,0.00011264,2]
[355487817,1741200648882,-500.0,0.00011264,2]
[355487818,1741200648892,-500.0,0.00011264,2]
[355487819,1741200648902,-457.64323847,0.00011264,2]
[355487820,1741200648912,-500.0,0.00011264,2]
[355487821,1741200648922,-500.0,0.00011264,2]
[355487822,1741200648931,-1205.3,0.00011264,2]
[355487823,1741200648941,-500.0,0.00011264,2]
[355487824,1741200648950,-500.0,0.00011264,2]
[355487825,1741200648960,-831.88,0.00011264,2]
[355487826,1741200648971,-500.0,0.00011264,2]
[355487827,1741200648980,-653.11,0.00011264,2]
[355487828,1741200648990,-152.60622694,0.00011264,2]
[355487829,1741200648999,-500.0,0.00011264,2]
[355487830,1741200649008,-500.0,0.00011264,2]
[355487831,1741200649018,-500.0,0.00011264,2]
[355487832,1741200649027,-500.0,0.00011264,2]
[355487834,1741200649037,-500.0,0.00011264,2]
[355487836,1741200649048,-500.0,0.00011264,2]
[355487838,1741200649057,-500.0,0.00011264,2]
[355487840,1741200649067,-500.0,0.00011264,2]
[355487842,1741200649076,-500.0,0.00011264,2]
[355487844,1741200649085,-500.0,0.00011264,2]
[355487846,1741200649095,-500.0,0.00011264,2]
[355487848,1741200649104,-615.26,0.00011264,2]
[355487849,1741200649113,-602.05,0.00011264,2]
[355487852,1741200649123,-509.89,0.00011264,2]
[355487854,1741200649133,-500.0,0.00011264,2]
[355487856,1741200649142,-500.0,0.00011264,2]
[355487858,1741200649152,-500.0,0.00011264,2]
[355487859,1741200649161,-500.0,0.00011264,2]
[355487861,1741200649171,-97.72926715,0.00011264,2]
[355487865,1741200649191,-646.05073285,0.00011264,2]
[355487867,1741200649200,-682.9,0.00011264,2]
[355487868,1741200649210,-500.0,0.00011264,2]
[355487870,1741200649220,-718.99,0.00011264,2]
[355487872,1741200649230,-227.9992748,0.00011264,2]
[355487875,1741200649241,-272.0007252,0.00011264,2]
[355487877,1741200649251,-515.02,0.00011264,2]
[355487879,1741200649261,-539.51,0.00011264,2]
[355487881,1741200649271,-500.0,0.00011264,2]
[355487883,1741200649280,-500.0,0.00011264,2]
[355487885,1741200649289,-248.0969486,0.00011264,2]
[355487887,1741200649299,-500.0,0.00011264,2]
[355487889,1741200649308,-500.0,0.00011264,2]
[355487891,1741200649317,-500.0,0.00011264,2]
[355487893,1741200649327,-500.0,0.00011264,2]
[355487895,1741200649336,-605.87,0.00011264,2]
[355487896,1741200649345,-500.0,0.00011264,2]
[355487898,1741200649355,-5.77222132,0.00011264,2]
[355487922,1741200649581,-725.98777868,0.00011264,2]
[355487924,1741200649589,-218.64725132,0.00011264,2]
[355487926,1741200649600,-281.35274868,0.00011264,2]
[355487928,1741200649609,-54.61225129,0.00011264,2]
[355487931,1741200649621,-445.38774871,0.00011264,2]
[355487933,1741200649630,-446.74856502,0.00011264,2]
[355487936,1741200649654,-585.12,0.00011263,2]
[355487938,1741200649664,-53.25143498,0.00011264,2]
[355487940,1741200649673,-72.57012612,0.00011264,2]
[355488026,1741200650593,-445.93234517,0.0001099,2]
[355488027,1741200650606,-346.66765483,0.0001099,2]
[355488028,1741200650615,-572.96,0.0001099,2]
[355488029,1741200650625,-427.42987388,0.00011264,2]
[355488030,1741200650634,-500.0,0.00011264,2]
[355488031,1741200650643,-596.95,0.00011264,2]
[355488032,1741200650653,-655.97,0.00011264,2]
[355488033,1741200650663,-546.59,0.00011264,2]
[355488034,1741200650673,-500.0,0.00011264,2]
[355488035,1741200650682,-582.54,0.00011264,2]
[355488036,1741200650693,-500.0,0.00011264,2]
[355488037,1741200650703,-729.26,0.00011264,2]
[355488038,1741200650713,-896.38,0.00011264,2]
[355488039,1741200650723,-87.651889,0.00011264,7]
[355488040,1741200650735,-412.348111,0.00011264,7]
[355488041,1741200650745,-500.0,0.00011264,2]
[355488042,1741200650755,-500.0,0.00011264,2]
[355488043,1741200650765,-500.0,0.00011264,2]
[355488044,1741200650781,-545.63,0.00011264,2]
[355488045,1741200650791,-964.47,0.00011264,2]
[355488046,1741200650801,-500.0,0.00011264,2]
[355488047,1741200650812,-592.12,0.00011264,2]
[355488048,1741200650827,-813.47,0.00011264,2]
[355488049,1741200650847,-644.97,0.00011264,2]
[355488050,1741200650860,-500.0,0.00011264,2]
[355488051,1741200650870,-500.0,0.00011264,2]
[355488052,1741200650880,-500.0,0.00011264,2]
[355488053,1741200650890,-500.0,0.00011264,2]
[355488054,1741200650900,-643.58,0.00011264,2]
[355488055,1741200650910,-877.62,0.00011264,2]
[355488056,1741200650920,-737.31,0.00011264,2]
[355488057,1741200650930,-956.92,0.00011264,2]
[355488058,1741200650943,-500.0,0.00011264,2]
[355488059,1741200650953,-500.0,0.00011264,2]
[355488060,1741200650962,-500.0,0.00011264,2]
[355488061,1741200650972,-797.78,0.00011264,2]
[355488063,1741200650981,-500.0,0.00011264,2]
[355488065,1741200650991,-678.02,0.00011264,2]
[355488067,1741200651000,-940.93,0.00011264,2]
[355488069,1741200651009,-500.0,0.00011264,2]
[355488071,1741200651019,-500.0,0.00011264,2]
[355488074,1741200651028,-903.32,0.00011264,2]
[355488076,1741200651039,-755.4,0.00011264,2]
[355488078,1741200651048,-500.0,0.00011264,2]
[355488080,1741200651058,-500.0,0.00011264,2]
[355488082,1741200651067,-500.0,0.00011264,2]
[355488084,1741200651077,-500.0,0.00011264,2]
[355488086,1741200651086,-500.0,0.00011264,2]
[355488088,1741200651096,-500.0,0.00011264,2]
[355488090,1741200651105,-500.0,0.00011264,2]
[355488092,1741200651115,-500.0,0.00011264,2]
[355488094,1741200651124,-500.0,0.00011264,2]
[355488096,1741200651135,-500.0,0.00011264,2]
[355488098,1741200651144,-503.35,0.00011264,2]
[355488100,1741200651156,-500.0,0.00011264,2]
[355488102,1741200651165,-636.56,0.00011264,2]
[355488104,1741200651175,-500.0,0.00011264,2]
[355488106,1741200651186,-500.0,0.00011264,2]
[355488108,1741200651195,-883.54,0.00011264,2]
[355488110,1741200651205,-500.0,0.00011264,2]
[355488112,1741200651215,-500.0,0.00011264,2]
[355488114,1741200651224,-855.58,0.00011264,2]
[355488116,1741200651234,-500.0,0.00011264,2]
[355488118,1741200651243,-500.0,0.00011264,2]
[355488120,1741200651252,-500.0,0.00011264,2]
[355488122,1741200651262,-783.57,0.00011264,2]